bitfinex/quotes_BTCUSD_20250714
["timestamp","ask_amount","ask_price","bid_price","bid_amount"]
[1752469717835,1.0037292,121210.0,121200.0,0.32990879]
[1752469720631,1.0037292,121210.0,121200.0,0.19790879]
[1752469720850,1.0037292,121210.0,121200.0,0.32990879]
[1752469721671,1.0037292,121210.0,121200.0,0.23089967]
[1752469721877,1.0037292,121210.0,121200.0,0.36285967]
[1752469722074,1.0037292,121210.0,121200.0,0.23089967]
[1752469722281,1.0037292,121210.0,121200.0,0.36285967]
[1752469723226,1.0037292,121210.0,121200.0,0.32986879]
[1752469723664,1.0037292,121210.0,121200.0,0.19790879]
[1752469723869,1.0037292,121210.0,121200.0,0.32986879]
[1752469724072,1.0037292,121210.0,121200.0,0.19790879]
[1752469724281,1.0037292,121210.0,121200.0,0.32986879]
[1752469725483,1.0037292,121210.0,121200.0,0.36285567]
[1752469725691,1.0037292,121210.0,121200.0,0.36281567]
[1752469726518,1.0037292,121210.0,121200.0,0.32982879]
[1752469728581,1.0037292,121210.0,121200.0,0.19790879]
[1752469728782,1.0037292,121210.0,121200.0,0.32982879]
[1752469729385,1.0037292,121210.0,121200.0,0.19790879]
[1752469729742,1.0037292,121210.0,121200.0,0.32978879]
[1752469729933,1.0037292,121210.0,121200.0,0.36276767]
[1752469730510,0.67736366,121210.0,121200.0,0.36276767]
[1752469730719,1.0037292,121210.0,121200.0,0.36276767]
[1752469730869,1.0037292,121210.0,121200.0,0.16500767]
[1752469731044,1.0037292,121210.0,121200.0,0.13202879]
[1752469733926,1.0037292,121210.0,121200.0,0.00014879]
[1752469734150,1.0037292,121210.0,121200.0,0.13198879]
[1752469736712,1.0037292,121210.0,121200.0,0.00014879]
[1752469736935,0.9705292,121210.0,121200.0,0.00014879]
[1752469737067,0.9705292,121210.0,121200.0,0.13194879]
[1752469737264,1.0011292,121210.0,121200.0,0.14514367]
[1752469737523,1.0011292,121210.0,121200.0,0.13194879]
[1752469738735,1.0011292,121210.0,121200.0,0.00014879]
[1752469738951,1.0011292,121210.0,121200.0,0.13194879]
[1752469739158,1.0011292,121210.0,121200.0,0.00014879]
[1752469739730,1.0011292,121210.0,121200.0,0.13190879]
[1752469740041,1.0011292,121210.0,121200.0,0.00014879]
[1752469740421,1.0011292,121210.0,121200.0,0.13190879]
[1752469740639,1.0011292,121210.0,121200.0,0.00014879]
[1752469740791,1.0011292,121210.0,121200.0,0.13190879]
[1752469741582,1.0011292,121210.0,121200.0,0.00014879]
[1752469741781,1.0011292,121210.0,121200.0,0.13190879]
[1752469742984,1.0011292,121210.0,121200.0,0.00014879]
[1752469743368,1.0011292,121210.0,121200.0,0.13186879]
[1752469743858,0.02475348,121190.0,121180.0,0.0603]
[1752469744066,0.11018341,121190.0,121180.0,0.06076]
[1752469744263,0.11319341,121190.0,121180.0,0.06076]
[1752469744451,0.11319341,121190.0,121180.0,0.086616]
[1752469744665,0.12144491,121190.0,121180.0,0.086616]
[1752469744871,0.10494205,121190.0,121180.0,0.086616]
[1752469745065,0.11319335,121190.0,121180.0,0.221336]
[1752469745567,0.11319335,121190.0,121180.0,0.089616]
[1752469745768,0.10494205,121190.0,121180.0,0.221336]
[1752469745966,0.10494205,121190.0,121180.0,0.221296]
[1752469745967,0.08542993,121190.0,121180.0,0.221296]
[1752469746172,0.23368089,121190.0,121180.0,0.221296]
[1752469746358,0.23368082,121190.0,121180.0,0.221296]
[1752469746569,0.24193184,121190.0,121180.0,0.221296]
[1752469746760,0.23368082,121190.0,121180.0,0.221296]
[1752469747000,0.30314082,121190.0,121180.0,0.003]
[1752469747235,0.58986045,121190.0,121180.0,0.13468]
[1752469747440,0.76878844,121190.0,121180.0,0.003]
[1752469747742,0.76878844,121190.0,121180.0,0.13468]
[1752469747873,0.76878844,121190.0,121180.0,0.13268]
[1752469748073,0.76978844,121190.0,121180.0,0.13168]
[1752469748531,0.77078844,121190.0,121180.0,0.144848]
[1752469749039,0.77078844,121190.0,121180.0,0.013168]
[1752469749252,0.77078844,121190.0,121180.0,0.13168]
[1752469750597,0.4444229,121190.0,121180.0,0.13168]
[1752469750915,0.77078844,121190.0,121180.0,0.13168]
[1752469752810,0.00825239,121170.0,121160.0,0.0615]
[1752469753110,0.49368232,121170.0,121160.0,0.1936]
[1752469753314,0.50193491,121170.0,121160.0,0.19356]
[1752469753667,0.50193484,121170.0,121160.0,0.19356]
[1752469753925,0.52145036,121170.0,121160.0,0.06196]
[1752469754104,0.99841834,121170.0,121160.0,0.00014886]
[1752469754312,1.03161834,121170.0,121160.0,0.13374886]
[1752469754757,1.37161834,121170.0,121160.0,0.00214886]
[1752469754961,1.41725919,121170.0,121160.0,0.13374886]
[1752469755331,1.41725919,121170.0,121160.0,0.00214886]
[1752469755634,1.41725919,121170.0,121160.0,0.13370886]
[1752469756034,1.41725919,121170.0,121160.0,0.00214886]
[1752469756238,1.44635192,121170.0,121160.0,0.00314886]
[1752469756439,1.41725919,121170.0,121160.0,0.13270886]
[1752469756767,1.41725919,121170.0,121160.0,0.13170886]
[1752469757403,1.41825919,121170.0,121160.0,0.13170886]
[1752469758357,1.41725919,121170.0,121160.0,0.13170886]
[1752469759422,1.41725919,121170.0,121160.0,0.00014886]
[1752469759799,1.41725919,121170.0,121160.0,0.13170886]
[1752469760025,1.41825919,121170.0,121160.0,0.13170886]
[1752469760170,1.42125919,121170.0,121160.0,0.13170886]
[1752469760390,1.41825919,121170.0,121160.0,0.13166886]
[1752469760691,1.09589365,121170.0,121160.0,0.16461575]
[1752469760897,1.31479365,121170.0,121160.0,0.00014886]
[1752469761099,1.64115919,121170.0,121160.0,0.13166886]
[1752469761866,1.60695919,121170.0,121160.0,0.13166886]
[1752469762317,1.60995919,121170.0,121160.0,0.13166886]
[1752469762780,1.60695919,121170.0,121160.0,0.13166886]
[1752469763008,1.60495919,121170.0,121160.0,0.13166886]
[1752469763470,1.64025919,121170.0,121160.0,0.13166886]
[1752469764027,1.49099632,121170.0,121160.0,0.13166886]
[1752469764363,1.49099632,121170.0,121160.0,0.00014886]
[1752469764574,1.51575396,121170.0,121160.0,0.13166886]
[1752469764777,1.68906417,121170.0,121160.0,0.00014886]
[1752469765030,1.68906417,121170.0,121160.0,0.13162886]
[1752469765031,1.68081178,121170.0,121160.0,0.13162886]
[1752469765856,1.51575443,121170.0,121160.0,0.13162886]
[1752469766076,1.50750116,121170.0,121160.0,0.00014886]
[1752469766277,1.51575382,121170.0,121160.0,0.13162886]
[1752469766400,1.50750116,121170.0,121160.0,0.13162886]
[1752469766797,1.51575375,121170.0,121160.0,0.13162886]
[1752469766978,1.52400641,121170.0,121160.0,0.13162886]
[1752469767402,1.53225927,121170.0,121160.0,0.13162886]
[1752469767544,1.52400695,121170.0,121160.0,0.13162886]
[1752469768303,1.51575443,121170.0,121160.0,0.00014886]
[1752469768506,1.51575443,121170.0,121160.0,0.13158886]
[1752469768659,1.70556378,121170.0,121160.0,0.13158886]
[1752469769060,1.53225357,121170.0,121160.0,0.13158886]
[1752469769334,1.54050636,121170.0,121160.0,0.13158886]
[1752469769536,1.70556371,121170.0,121160.0,0.13158886]
[1752469771281,0.26454085,121140.0,121120.0,0.0613]
[1752469771504,0.08542993,121130.0,121120.0,0.06144908]
[1752469771797,0.08866993,121130.0,121120.0,0.06190908]
[1752469772127,0.08542993,121130.0,121120.0,0.06190908]
[1752469772386,0.08542993,121130.0,121120.0,0.08788799]
[1752469772588,0.08542993,121130.0,121120.0,0.22228799]
[1752469772738,0.08542993,121130.0,121120.0,0.09388799]
[1752469772942,0.08542993,121130.0,121120.0,0.22228799]
[1752469773380,0.08542993,121130.0,121120.0,0.22828799]
[1752469773545,0.08542993,121130.0,121120.0,0.22228799]
[1752469773944,0.08542993,121130.0,121120.0,0.22428799]
[1752469774776,0.08542993,121130.0,121120.0,0.22128799]
[1752469775002,0.08542993,121130.0,121120.0,0.22328799]
[1752469775541,0.08542993,121130.0,121120.0,0.72332515]
[1752469775753,0.08542993,121130.0,121120.0,0.56641587]
[1752469775885,0.08542993,121130.0,121120.0,0.22324799]
[1752469776095,0.09073993,121130.0,121120.0,0.19726908]
[1752469776486,0.09073993,121130.0,121120.0,0.13550908]
[1752469777137,0.09073993,121130.0,121120.0,0.00414908]
[1752469777483,0.09073993,121130.0,121120.0,0.13550908]
[1752469777723,0.09073993,121130.0,121120.0,0.13350908]
[1752469778230,0.09073993,121130.0,121120.0,0.13150908]
[1752469778436,0.09073993,121130.0,121120.0,0.13250908]
[1752469779553,0.09073993,121130.0,121120.0,0.00114908]
[1752469779758,0.09073993,121130.0,121120.0,0.13250908]
[1752469780402,0.08866993,121130.0,121120.0,0.07190799]
[1752469780643,0.08866993,121130.0,121120.0,0.23612799]
[1752469780843,0.08866993,121130.0,121120.0,0.19672908]
[1752469782385,0.08866993,121130.0,121120.0,0.16382908]
[1752469782602,0.09073993,121130.0,121120.0,0.16382908]
[1752469783018,0.08866993,121130.0,121120.0,0.19622908]
[1752469784117,0.08866993,121130.0,121120.0,0.23067998]
[1752469785039,0.08542993,121130.0,121120.0,1.07359454]
[1752469785244,0.08542993,121130.0,121120.0,0.94231454]
[1752469785457,0.27824192,121160.0,121150.0,0.0326]
[1752469785699,0.36367185,121160.0,121150.0,0.49020554]
[1752469785897,0.67866993,121160.0,121150.0,0.16384]
[1752469786114,0.68073993,121160.0,121150.0,0.21606055]
[1752469787205,0.70949093,121160.0,121150.0,0.18346055]
[1752469787572,0.73750994,121160.0,121150.0,0.18346055]
[1752469788551,0.73450994,121160.0,121150.0,0.18346055]
[1752469788763,0.73050994,121160.0,121150.0,0.18346055]
[1752469789189,0.73350994,121160.0,121150.0,0.18346055]
[1752469789381,0.73550994,121160.0,121150.0,0.18346055]
[1752469791600,0.73550994,121160.0,121150.0,0.05222055]
[1752469791803,0.81155079,121160.0,121130.0,0.39026554]
[1752469792011,0.08866993,121150.0,121140.0,0.13116]
[1752469792138,0.49073993,121150.0,121140.0,0.13116]
[1752469793178,0.49173993,121150.0,121140.0,0.13116]
[1752469794142,0.49173993,121150.0,121140.0,0.05260255]
[1752469794397,0.48966993,121150.0,121140.0,0.24822255]
[1752469794614,0.49066993,121150.0,121140.0,0.24822255]
[1752469795611,0.49066993,121150.0,121140.0,0.11710255]
[1752469795811,0.49066993,121150.0,121140.0,0.24822255]
[1752469796852,0.48742993,121150.0,121140.0,0.24822255]
[1752469797232,0.48742993,121150.0,121140.0,0.25647746]
[1752469797443,0.48742993,121150.0,121140.0,0.24822255]
[1752469797886,0.48742993,121150.0,121140.0,0.57458809]
[1752469798917,0.48742993,121150.0,121140.0,0.11710255]
[1752469799095,0.49066993,121150.0,121140.0,0.52240554]
[1752469799299,0.49066993,121150.0,121140.0,0.19527451]
[1752469799716,0.49277993,121150.0,121140.0,0.032]
[1752469799894,0.49277993,121150.0,121140.0,0.13108]
[1752469800099,0.49277993,121150.0,121130.0,0.35916554]
[1752469800307,0.49277993,121150.0,121140.0,0.13104]
[1752469800762,0.49277993,121150.0,121130.0,0.40106892]
[1752469800967,0.49177993,121150.0,121140.0,0.13104]
[1752469801171,0.52267993,121150.0,121130.0,0.07470338]
[1752469801353,0.51943993,121150.0,121140.0,0.13104]
[1752469801585,0.51843993,121150.0,121140.0,0.15171434]
[1752469802006,0.52138993,121150.0,121140.0,0.15171434]
[1752469802362,0.48837993,121150.0,121140.0,0.50847988]
[1752469802654,0.48542993,121150.0,121140.0,0.40803988]
[1752469802866,0.48542993,121150.0,121140.0,0.53907988]
[1752469802867,0.48642993,121150.0,121140.0,0.53907988]
[1752469803497,0.48742993,121150.0,121140.0,0.53907988]
[1752469804060,0.48642993,121150.0,121140.0,0.53907988]
[1752469804561,0.48542993,121150.0,121140.0,0.53907988]
[1752469805362,0.48542993,121150.0,121140.0,0.54007988]
[1752469805752,0.48542993,121150.0,121140.0,0.73795988]
[1752469806383,0.00295,121170.0,121140.0,0.73787988]
[1752469806639,0.00295,121170.0,121160.0,0.38886554]
[1752469806863,0.08837993,121170.0,121160.0,0.55891845]
[1752469807010,0.48542993,121170.0,121160.0,0.55891845]
[1752469807866,0.48542993,121170.0,121160.0,0.55906753]
[1752469808218,0.62542993,121170.0,121160.0,0.55906753]
[1752469808639,0.62842993,121170.0,121160.0,0.55906753]
[1752469808863,0.62842993,121170.0,121160.0,0.23270199]
[1752469809059,0.62842993,121170.0,121160.0,0.51997462]
[1752469809267,0.63037993,121170.0,121160.0,0.51997462]
[1752469809725,0.63137993,121170.0,121160.0,0.51997462]
[1752469810542,0.62937993,121170.0,121160.0,0.51997462]
[1752469810938,0.63037993,121170.0,121160.0,0.51997462]
[1752469811139,0.63248993,121170.0,121160.0,0.44101208]
[1752469811376,0.63248993,121170.0,121160.0,0.40891208]
[1752469811706,0.63248993,121170.0,121160.0,0.53979208]
[1752469811850,0.63248993,121170.0,121160.0,0.21342654]
[1752469815127,0.63248993,121170.0,121160.0,0.53979208]
[1752469815321,0.63148993,121170.0,121160.0,0.21342654]
[1752469815523,0.63048993,121170.0,121160.0,0.48779462]
[1752469815666,0.63048993,121170.0,121160.0,0.48775462]
[1752469816816,0.63048993,121170.0,121160.0,0.16138908]
[1752469818130,0.63048993,121170.0,121160.0,0.13098908]
[1752469819497,0.63048993,121170.0,121160.0,0.00014908]
[1752469819698,0.63048993,121170.0,121160.0,0.13094908]
[1752469819902,0.63048993,121170.0,121160.0,0.45731462]
[1752469820083,0.63048993,121170.0,121160.0,0.50920608]
[1752469820454,0.63048993,121170.0,121160.0,0.13090908]
[1752469820653,0.66058993,121170.0,121160.0,0.13090908]
[1752469822173,0.66058993,121170.0,121160.0,0.00014908]
[1752469822373,0.66058993,121170.0,121160.0,0.13090908]
[1752469823398,0.63048993,121170.0,121160.0,0.13090908]
[1752469823603,0.63048993,121170.0,121160.0,0.18279654]
[1752469823783,0.63048993,121170.0,121160.0,0.50916208]
[1752469823973,0.63048993,121170.0,121160.0,0.50912208]
[1752469824814,0.63048993,121170.0,121160.0,0.18275654]
[1752469825264,0.23048993,121170.0,121160.0,0.05203654]
[1752469825471,0.22542993,121170.0,121160.0,0.43980208]
[1752469825928,0.22542993,121170.0,121160.0,0.57048208]
[1752469828730,0.22542993,121170.0,121160.0,0.24411654]
[1752469828959,0.22542993,121170.0,121160.0,0.51859462]
[1752469829917,0.22542993,121170.0,121160.0,0.06154908]
[1752469830162,0.22542993,121170.0,121160.0,0.38791462]
[1752469830365,0.22837993,121170.0,121160.0,0.51851462]
[1752469830950,0.22542993,121170.0,121160.0,0.51851462]
[1752469831115,0.22542993,121170.0,121160.0,0.57036608]
[1752469834740,0.22542993,121170.0,121160.0,0.43976608]
[1752469834941,0.22542993,121170.0,121160.0,0.57032608]
[1752469835948,0.22542993,121170.0,121160.0,0.5914894]
[1752469837622,0.22542993,121170.0,121160.0,0.57032608]
[1752469838363,0.22542993,121170.0,121160.0,0.57232608]
[1752469838601,0.22542993,121170.0,121160.0,0.57032608]
[1752469839030,0.22542993,121170.0,121160.0,0.57232608]
[1752469839231,0.22542993,121170.0,121160.0,0.57332608]
[1752469839696,0.22542993,121170.0,121160.0,0.57232608]
[1752469840196,0.22542993,121170.0,121160.0,0.78997313]
[1752469840197,0.14,121170.0,121160.0,0.78997313]
[1752469840467,0.14,121170.0,121160.0,0.92045313]
[1752469842454,0.14,121170.0,121160.0,0.92066893]
[1752469844128,0.14,121170.0,121160.0,0.92062893]
[1752469849108,0.14,121170.0,121160.0,1.11842893]
[1752469852481,0.00294,121180.0,121160.0,1.11842893]
[1752469852700,0.08836993,121180.0,121170.0,0.32853665]
[1752469852863,0.08836993,121180.0,121170.0,0.54222337]
[1752469853259,0.08836993,121180.0,121170.0,0.57302337]
[1752469854327,0.16836993,121180.0,121170.0,0.57302337]
[1752469856252,0.16836993,121180.0,121170.0,0.57408461]
[1752469857016,0.16836993,121180.0,121170.0,0.54328461]
[1752469857662,0.17035993,121180.0,121170.0,0.54328461]
[1752469858378,0.16542993,121180.0,121170.0,0.57568461]
[1752469858582,0.08542993,121180.0,121170.0,0.60850461]
[1752469858785,0.08542993,121180.0,121170.0,0.60846461]
[1752469860204,0.08542993,121180.0,121170.0,0.47826461]
[1752469860389,0.08542993,121180.0,121170.0,0.60846461]
[1752469863127,0.08855993,121180.0,121170.0,0.44536461]
[1752469863296,0.08855993,121180.0,121170.0,0.57552461]
[1752469863937,0.12060993,121180.0,121170.0,0.54312461]
[1752469864941,0.15340993,121180.0,121170.0,0.21665117]
[1752469865236,0.15340993,121180.0,121170.0,0.13118124]
[1752469867989,0.47988337,121180.0,121170.0,0.00106124]
[1752469868400,0.47988337,121180.0,121170.0,0.13114124]
[1752469868401,0.17815593,121180.0,121170.0,0.13114124]
[1752469869810,0.17815593,121180.0,121170.0,0.00106124]
[1752469870015,0.17815593,121180.0,121170.0,0.13114124]
[1752469870219,0.17815593,121180.0,121170.0,0.16405027]
[1752469871463,0.17815593,121180.0,121170.0,0.13114124]
[1752469872102,0.17815593,121180.0,121170.0,0.13110124]
[1752469875787,0.17815593,121180.0,121170.0,0.00106124]
[1752469876024,0.17815593,121180.0,121170.0,0.13110124]
[1752469877086,0.17815593,121180.0,121170.0,0.00106124]
[1752469877286,0.17815593,121180.0,121170.0,0.13106124]
[1752469877919,0.17815593,121180.0,121170.0,0.16396227]
[1752469878503,0.17815593,121180.0,121170.0,0.03396227]
[1752469878785,0.17815593,121180.0,121170.0,0.16392227]
[1752469880693,0.17815593,121180.0,121170.0,0.00106124]
[1752469880941,0.17815593,121180.0,121170.0,0.13102124]
[1752469881153,0.51288094,121180.0,121170.0,0.13102124]
[1752469881354,0.52113258,121180.0,121170.0,0.13102124]
[1752469881558,1.1339252,121180.0,121170.0,0.00106124]
[1752469881779,1.14217718,121180.0,121170.0,0.00106124]
[1752469881984,1.14217718,121180.0,121170.0,0.13098124]
[1752469882373,1.14217711,121180.0,121170.0,0.13098124]
[1752469883005,1.15042916,121180.0,121170.0,0.13098124]
[1752469883428,1.15042909,121180.0,121170.0,0.13098124]
[1752469883639,1.1504297,121180.0,121170.0,0.13098124]
[1752469883845,1.14217752,121180.0,121170.0,0.13098124]
[1752469883975,1.14317752,121180.0,121170.0,0.13098124]
[1752469884181,1.14417752,121180.0,121170.0,0.13098124]
[1752469884449,1.1524297,121180.0,121170.0,0.13098124]
[1752469884653,1.30097002,121180.0,121170.0,0.13098124]
[1752469885100,1.30097002,121180.0,121170.0,0.00106124]
[1752469885301,1.29271811,121180.0,121170.0,0.00106124]
[1752469885488,1.29271811,121180.0,121170.0,0.13098124]
[1752469885696,1.29271811,121180.0,121170.0,0.13094124]
[1752469892873,0.96624467,121180.0,121170.0,0.00106124]
[1752469893097,1.29271811,121180.0,121170.0,0.13090124]
[1752469893276,0.80120012,121180.0,121170.0,0.00106124]
[1752469893690,0.53469678,121180.0,121170.0,0.13086124]
[1752469893903,0.76014835,121180.0,121170.0,0.13086124]
[1752469894103,0.75189678,121180.0,121170.0,0.13086124]
[1752469894311,0.75189678,121180.0,121170.0,0.17660962]
[1752469894722,0.75189678,121180.0,121170.0,0.13086124]
[1752469895481,0.75189678,121180.0,121170.0,0.13076124]
[1752469898057,0.70217593,121180.0,121170.0,0.51963468]
[1752469898324,0.08742993,121180.0,121170.0,0.51963468]
[1752469898554,0.08742993,121180.0,121170.0,0.19312124]
[1752469898813,0.09059993,121180.0,121170.0,0.22009538]
[1752469899282,0.09059993,121180.0,121170.0,0.19312124]
[1752469901306,0.09059993,121180.0,121170.0,0.06336124]
[1752469901653,0.09059993,121180.0,121170.0,0.19308124]
[1752469902162,0.08742993,121180.0,121170.0,0.19308124]
[1752469904654,0.002,121180.0,121170.0,0.81525468]
[1752469904823,0.002,121180.0,121170.0,0.90064461]
[1752469905028,0.002,121180.0,121170.0,0.77096461]
[1752469905251,0.002,121180.0,121170.0,0.90064461]
[1752469906062,0.001,121180.0,121170.0,0.90064461]
[1752469906266,0.001,121180.0,121170.0,0.91924336]
[1752469906480,1.70985121,121200.0,121170.0,0.85684336]
[1752469906685,1.79528114,121200.0,121190.0,0.38837344]
[1752469906829,1.79528114,121200.0,121190.0,0.55685078]
[1752469907876,1.79628114,121200.0,121190.0,0.55685078]
[1752469908321,1.79128114,121200.0,121190.0,0.55685078]
[1752469909154,1.79228114,121200.0,121190.0,0.55685078]
[1752469909567,1.79228114,121200.0,121190.0,0.23037734]
[1752469909764,1.79228114,121200.0,121190.0,0.51801344]
[1752469910441,1.79228114,121200.0,121190.0,0.38837344]
[1752469910644,1.79228114,121200.0,121190.0,0.51797344]
[1752469912789,1.79028114,121200.0,121190.0,0.51797344]
[1752469913913,1.79028114,121200.0,121190.0,0.1915]
[1752469914116,1.79028114,121200.0,121190.0,0.53712344]
[1752469914527,1.79345114,121200.0,121190.0,0.53712344]
[1752469915491,1.53535216,121200.0,121190.0,1.31146302]
[1752469915688,1.53535216,121200.0,121190.0,1.46226842]
[1752469915894,1.52710987,121200.0,121190.0,1.47877108]
[1752469916092,1.52710987,121200.0,121190.0,1.48702224]
[1752469916259,1.51886758,121200.0,121190.0,1.48702224]
[1752469916495,1.51886758,121200.0,121190.0,1.47877121]
[1752469916696,1.51062529,121200.0,121190.0,1.47151985]
[1752469917074,1.502383,121200.0,121190.0,1.29598681]
[1752469917281,1.502383,121200.0,121190.0,1.29498681]
[1752469917412,1.49414071,121200.0,121190.0,1.29998681]
[1752469917828,1.48589842,121200.0,121190.0,1.29998681]
[1752469918035,1.48589842,121200.0,121190.0,1.29994681]
[1752469918222,1.47765613,121200.0,121190.0,1.29994681]
[1752469918622,1.46941384,121200.0,121190.0,1.29994681]
[1752469919063,1.46117155,121200.0,121190.0,1.29994681]
[1752469919413,1.45292926,121200.0,121190.0,0.97343337]
[1752469919638,1.45292926,121200.0,121190.0,0.84395337]
[1752469919837,1.44468697,121200.0,121190.0,0.97343337]
[1752469920038,1.44468697,121200.0,121190.0,1.29990681]
[1752469920244,1.43644468,121200.0,121190.0,1.29990681]
[1752469920685,1.42820239,121200.0,121190.0,1.29990681]
[1752469921087,1.41996227,121200.0,121190.0,1.29990681]
[1752469921469,1.41172215,121200.0,121190.0,1.29990681]
[1752469921875,1.40348203,121200.0,121190.0,1.29990681]
[1752469922273,1.39524191,121200.0,121190.0,1.29986681]
[1752469922661,1.38700179,121200.0,121190.0,1.29986681]
[1752469922871,1.38700179,121200.0,121190.0,1.17042681]
[1752469923119,1.37876167,121200.0,121190.0,1.29986681]
[1752469923517,1.37052155,121200.0,121190.0,1.29986681]
[1752469923714,1.36228143,121200.0,121190.0,1.29986681]
[1752469924232,1.35404131,121200.0,121190.0,1.29986681]
[1752469924644,1.34580119,121200.0,121190.0,1.29986681]
[1752469924851,1.34580119,121200.0,121190.0,1.59556681]
[1752469925056,1.33756107,121200.0,121190.0,1.59556681]
[1752469925692,1.33756107,121200.0,121190.0,1.26905337]
[1752469925901,1.33756107,121200.0,121190.0,1.13965337]
[1752469926100,1.33756107,121200.0,121190.0,1.26905337]
[1752469927946,1.33756107,121200.0,121190.0,1.26901337]
[1752469934726,1.33756107,121200.0,121190.0,1.59540681]
[1752469935357,1.33756107,121200.0,121190.0,1.46612681]
[1752469935571,1.33756107,121200.0,121190.0,1.59540681]
[1752469939140,1.32932097,121200.0,121190.0,1.59540681]
[1752469939348,1.32932097,121200.0,121190.0,1.79148043]
[1752469939578,1.32108087,121200.0,121190.0,1.78322913]
[1752469939775,1.32108087,121200.0,121190.0,1.60994766]
[1752469939982,1.31284077,121200.0,121190.0,1.61819909]
[1752469940239,1.31284077,121200.0,121190.0,1.62645045]
[1752469940373,1.30460067,121200.0,121190.0,1.62645045]
[1752469940580,1.30460067,121200.0,121190.0,1.61819909]
[1752469940945,1.29636057,121200.0,121190.0,1.62645045]
[1752469941201,1.28812047,121200.0,121190.0,1.62645045]
[1752469941412,1.28812047,121200.0,121190.0,1.63470175]
[1752469941657,1.27988037,121200.0,121190.0,1.63470175]
[1752469941828,1.27988037,121200.0,121190.0,1.79973186]
[1752469942004,1.27164027,121200.0,121190.0,1.79148056]
[1752469942206,1.26340017,121200.0,121190.0,1.79973186]
[1752469942411,1.26340017,121200.0,121190.0,1.79973179]
[1752469942613,0.95946007,121200.0,121190.0,1.79148056]
[1752469942816,0.95946007,121200.0,121190.0,1.80798309]
[1752469943032,0.95121997,121200.0,121190.0,1.80798309]
[1752469943217,0.95121997,121200.0,121190.0,1.79973186]
[1752469943421,0.94297987,121200.0,121190.0,1.79973186]
[1752469943623,0.94297987,121200.0,121190.0,1.81620956]
[1752469943822,0.93473977,121200.0,121190.0,1.8079582]
[1752469944038,0.93473977,121200.0,121190.0,1.64292816]
[1752469944220,0.92649998,121200.0,121190.0,1.8162097]
[1752469944446,0.92649998,121200.0,121190.0,1.83271236]
[1752469944656,0.91826019,121200.0,121190.0,1.89096359]
[1752469944859,0.91826019,121200.0,121190.0,1.89096311]
[1752469945089,0.9100204,121200.0,121190.0,1.89096311]
[1752469945488,0.90178061,121200.0,121190.0,1.88271209]
[1752469945698,0.90178061,121200.0,121190.0,1.89096311]
[1752469945907,0.89354082,121200.0,121190.0,1.88271202]
[1752469946110,0.89354082,121200.0,121190.0,1.89096311]
[1752469946305,0.88530103,121200.0,121190.0,1.8909627]
[1752469946773,0.87706124,121200.0,121190.0,1.8909627]
[1752469947117,0.86882145,121200.0,121190.0,1.8909627]
[1752469947551,0.86058166,121200.0,121190.0,1.8909627]
[1752469947895,0.85234187,121200.0,121190.0,1.8909627]
[1752469948312,0.84410208,121200.0,121190.0,1.8909627]
[1752469948716,0.83586229,121200.0,121190.0,1.88271168]
[1752469948921,0.83586229,121200.0,121190.0,1.8909627]
[1752469949139,0.8276225,121200.0,121190.0,1.88271168]
[1752469949496,0.81938271,121200.0,121190.0,1.8909627]
[1752469949704,0.81938271,121200.0,121190.0,1.87446059]
[1752469949917,0.81114292,121200.0,121190.0,1.88271168]
[1752469950280,0.80290424,121200.0,121190.0,1.8909627]
[1752469950504,0.80290424,121200.0,121190.0,1.88271168]
[1752469950709,0.79466556,121200.0,121190.0,1.88271168]
[1752469951003,0.79466556,121200.0,121190.0,1.87446059]
[1752469951217,0.79466556,121200.0,121190.0,1.86620943]
[1752469951218,0.78642688,121200.0,121190.0,1.86620943]
[1752469951437,0.78642688,121200.0,121190.0,1.87446066]
[1752469951645,0.7781882,121200.0,121190.0,1.87446066]
[1752469951854,0.76994952,121200.0,121190.0,1.88271168]
[1752469952284,0.76171084,121200.0,121190.0,1.88271168]
[1752469952694,0.75347216,121200.0,121190.0,1.88271168]
[1752469953057,0.74523348,121200.0,121190.0,1.88271182]
[1752469953479,0.7369948,121200.0,121190.0,1.89096291]
[1752469953654,0.7369948,121200.0,121190.0,1.89096257]
[1752469953877,0.72875612,121200.0,121190.0,1.87446046]
[1752469954050,0.72875612,121200.0,121190.0,1.86620957]
[1752469954289,0.72875612,121200.0,121190.0,1.68467666]
[1752469954855,0.72875612,121200.0,121190.0,1.84970677]
[1752469955134,0.72875612,121200.0,121190.0,1.86620943]
[1752469955368,0.72875612,121200.0,121190.0,1.87446059]
[1752469955608,0.72875612,121200.0,121190.0,1.86620943]
[1752469956399,0.55549314,121200.0,121190.0,1.85531045]
[1752469956765,0.54725347,121200.0,121190.0,1.85531045]
[1752469956974,0.5390138,121200.0,121190.0,1.85531045]
[1752469957399,0.53077413,121200.0,121190.0,1.85531045]
[1752469957818,0.52253446,121200.0,121190.0,1.85531045]
[1752469958383,0.51429479,121200.0,121190.0,1.85531045]
[1752469959909,0.51429479,121200.0,121190.0,1.84705943]
[1752469960126,0.51429479,121200.0,121190.0,1.8388082]
[1752469960350,0.51429479,121200.0,121190.0,1.8470595]
[1752469960577,0.51429479,121200.0,121190.0,1.8388082]
[1752469960815,0.51429479,121200.0,121190.0,1.84705943]
[1752469961229,0.51429479,121200.0,121190.0,1.84705956]
[1752469962096,0.51429479,121200.0,121190.0,1.85531079]
[1752469962354,0.51429479,121200.0,121190.0,1.84705956]
[1752469962780,0.51429479,121200.0,121190.0,1.66552666]
[1752469963656,0.51429479,121200.0,121190.0,1.66524666]
[1752469963885,0.51729479,121200.0,121190.0,1.66524666]
[1752469964129,0.51729479,121200.0,121190.0,1.53624666]
[1752469964355,0.51729479,121200.0,121190.0,1.66524666]
[1752469964569,0.51729479,121200.0,121190.0,1.67349816]
[1752469964773,0.51729479,121200.0,121190.0,1.66524666]
[1752469965940,0.51729479,121200.0,121190.0,1.87117809]
[1752469966156,0.51429479,121200.0,121190.0,1.87117809]
[1752469966369,0.51429479,121200.0,121190.0,2.05267073]
[1752469966595,0.50605533,121200.0,121190.0,2.11037175]
[1752469966815,0.49781587,121200.0,121190.0,2.11037175]
[1752469967263,0.48957641,121200.0,121190.0,1.98141175]
[1752469967478,0.48957641,121200.0,121190.0,2.11037175]
[1752469967696,0.48957641,121200.0,121190.0,2.10212073]
[1752469967697,0.48133695,121200.0,121190.0,2.10212073]
[1752469967908,0.48133695,121200.0,121190.0,2.11037182]
[1752469968141,0.48133695,121200.0,121190.0,1.03097978]
[1752469968142,0.47609749,121200.0,121190.0,1.03097978]
[1752469968381,0.47609749,121200.0,121190.0,1.65312666]
[1752469968587,0.47609749,121200.0,121190.0,1.82323816]
[1752469968706,0.47309749,121200.0,121190.0,1.81498666]
[1752469969098,0.47309749,121200.0,121190.0,1.82323816]
[1752469969304,0.47309749,121200.0,121190.0,1.83148959]
[1752469969572,0.47309749,121200.0,121190.0,1.80676059]
[1752469969786,0.47309749,121200.0,121190.0,1.79850916]
[1752469970220,0.47309749,121200.0,121190.0,1.80676059]
[1752469970371,0.47309749,121200.0,121190.0,1.79850916]
[1752469970574,0.47309749,121200.0,121190.0,1.80676059]